bitfinex-derivatives/quotes_BTCF0:USTF0_20250213
["timestamp","ask_amount","ask_price","bid_price","bid_amount"]
[1739422670391,0.002,96936.0,96932.0,0.2062993]
[1739422670698,0.003,96937.0,96932.0,0.2062993]
[1739422670894,0.002,96937.0,96932.0,0.2062993]
[1739422672593,0.003,96937.0,96932.0,0.2062993]
[1739422673291,0.003,96937.0,96927.0,0.1228054]
[1739422674187,0.2062925,96936.0,96927.0,0.1228054]
[1739422674395,0.2062937,96935.0,96927.0,0.1228054]
[1739422675193,0.003,96937.0,96927.0,0.1228054]
[1739422675394,0.003,96937.0,96927.0,0.2456108]
[1739422675594,0.003,96937.0,96933.0,0.2062973]
[1739422675899,0.002,96937.0,96933.0,0.2062973]
[1739422676101,0.001,96935.0,96933.0,0.2062973]
[1739422676799,0.002,96937.0,96933.0,0.2062973]
[1739422677501,0.001,96935.0,96933.0,0.2062973]
[1739422678901,0.3608,96938.0,96933.0,0.001]
[1739422679203,0.5670413,96960.0,96937.0,0.3608]
[1739422679396,0.00154771,96950.0,96937.0,0.3608]
[1739422679599,0.32100122,96960.0,96949.0,0.3608]
[1739422679795,0.32100122,96960.0,96950.0,0.1228054]
[1739422679996,0.32100122,96960.0,96954.0,0.2062527]
[1739422680294,0.32100122,96960.0,96950.0,0.1228054]
[1739422680803,0.32500122,96960.0,96950.0,0.1228054]
[1739422681405,0.32600122,96960.0,96950.0,0.1238054]
[1739422682395,0.32200122,96960.0,96950.0,0.1238054]
[1739422682592,0.32200122,96960.0,96954.0,0.001]
[1739422682802,0.32200122,96960.0,96956.0,0.2062478]
[1739422683007,0.32200122,96960.0,96957.0,0.2062463]
[1739422684097,0.32200122,96960.0,96958.0,0.2062442]
[1739422685201,0.32100122,96960.0,96958.0,0.2062442]
[1739422685404,0.32400122,96960.0,96958.0,0.2072442]
[1739422685900,0.32200122,96960.0,96958.0,0.2072442]
[1739422686099,0.32400122,96960.0,96958.0,0.2082442]
[1739422686498,0.32400122,96960.0,96958.0,0.21892234]
[1739422687105,0.003,96960.0,96958.0,0.21892234]
[1739422690503,0.00015477,96965.0,96963.0,0.2062336]
[1739422691698,0.00115477,96965.0,96963.0,0.2072336]
[1739422692107,0.00115477,96965.0,96963.0,0.2082336]
[1739422694607,0.00115477,96965.0,96963.0,0.002]
[1739422696202,0.00115477,96965.0,96964.0,0.2062319]
[1739422697316,0.00015477,96965.0,96964.0,0.2082319]
[1739422697713,0.3608,96985.0,96978.0,0.2062009]
[1739422697920,0.3608,96985.0,96973.0,0.3608]
[1739422698121,0.3608,96985.0,96983.0,0.206191]
[1739422698312,0.0301,96991.0,96983.0,0.206191]
[1739422699912,0.0301,96991.0,96981.0,0.1228054]
[1739422700108,0.0607,96992.0,96987.0,0.2061812]
[1739422700307,0.0607,96992.0,96983.0,0.3608]
[1739422700505,0.0607,96992.0,96991.0,0.2061745]
[1739422700710,0.0607,96992.0,96983.0,0.3608]
[1739422700711,0.0607,96992.0,96985.0,0.2061861]
[1739422700912,0.0607,96992.0,96983.0,0.3618]
[1739422702318,0.0607,96992.0,96986.0,0.2061844]
[1739422703207,0.0607,96992.0,96983.0,0.3618]
[1739422703412,0.0607,96992.0,96983.0,0.3608]
[1739422703612,0.0607,96992.0,96986.0,0.001]
[1739422704922,0.0607,96992.0,96985.0,0.2061867]
[1739422705716,0.0607,96992.0,96986.0,0.2061846]
[1739422706122,0.0607,96992.0,96987.0,0.2061828]
[1739422706716,0.2061641,96996.0,96988.0,0.2061807]
[1739422706916,0.0606,96998.0,96989.0,0.2061786]
[1739422707222,0.2061661,96995.0,96988.0,0.1228054]
[1739422708222,0.2061661,96995.0,96989.0,0.001]
[1739422709523,0.2061661,96995.0,96989.0,0.002]
[1739422710125,0.2061661,96995.0,96989.0,0.001]
[1739422710919,0.2061697,96994.0,96989.0,0.001]
[1739422711120,0.2061697,96994.0,96989.0,0.002]
[1739422711825,0.0606,96998.0,96989.0,0.002]
[1739422712028,0.2061724,96992.0,96989.0,0.001]
[1739422712227,0.2061724,96992.0,96989.0,0.002]
[1739422712428,0.2061619,96997.0,96989.0,0.002]
[1739422712928,0.2061619,96997.0,96989.0,0.001]
[1739422713121,0.2061619,96997.0,96989.0,0.002]
[1739422713321,0.2061663,96995.0,96989.0,0.002]
[1739422713722,0.0606,96998.0,96989.0,0.002]
[1739422713923,0.0606,96998.0,96997.0,0.2061617]
[1739422714126,0.0606,96998.0,96992.0,0.2061719]
[1739422715531,0.0606,96998.0,96992.0,0.2071719]
[1739422715735,0.1015468,97000.0,96992.0,0.3618]
[1739422716131,0.1015468,97000.0,96998.0,0.2061594]
[1739422716525,0.1015468,97000.0,96992.0,0.3618]
[1739422716526,0.1015468,97000.0,96999.0,0.2061575]
[1739422717826,0.1015468,97000.0,96999.0,0.01172085]
[1739422718029,0.1015468,97000.0,96999.0,0.001]
[1739422718735,0.1015468,97000.0,96999.0,0.01145457]
[1739422719035,0.1015468,97000.0,96999.0,0.01245457]
[1739422722141,0.3608,97004.0,96999.0,0.01245457]
[1739422722337,0.2061499,97003.0,96999.0,0.01245457]
[1739422724438,0.3608,97004.0,96999.0,0.01145457]
[1739422724637,0.2061499,97003.0,96999.0,0.01245457]
[1739422726434,0.3608,97004.0,96973.0,0.3608]
[1739422726638,0.2061983,96980.0,96973.0,0.3608]
[1739422726827,0.2061983,96980.0,96977.0,0.01111066]
[1739422727029,0.2061983,96980.0,96977.0,0.00015469]
[1739422727234,0.2062018,96979.0,96977.0,0.00015469]
[1739422727643,0.3608,96978.0,96977.0,0.00015469]
[1739422727842,0.3608,96978.0,96977.0,0.01068508]
[1739422728032,0.2062319,96964.0,96950.0,0.12245062]
[1739422728339,0.5670319,96964.0,96950.0,0.12245062]
[1739422728539,0.5670319,96964.0,96952.0,0.2062564]
[1739422729129,0.5670319,96964.0,96954.0,0.00015469]
[1739422729533,0.5670319,96964.0,96963.0,0.01204724]
[1739422730738,0.5670319,96964.0,96963.0,0.02004724]
[1739422731241,0.5670319,96964.0,96963.0,0.02204724]
[1739422740546,0.3608,96964.0,96963.0,0.02204724]
[1739422741150,0.0001544,96973.0,96963.0,0.22828004]
[1739422741340,0.0001544,96973.0,96964.0,0.0322]
[1739422741539,0.0001544,96973.0,96964.0,0.2384317]
[1739422742140,0.0011544,96973.0,96964.0,0.2384317]
[1739422742345,0.0011544,96973.0,96964.0,0.0322]
[1739422742847,0.2062149,96972.0,96964.0,0.0322]
[1739422744150,0.2062149,96972.0,96964.0,0.0342]
[1739422744950,0.0001544,96973.0,96964.0,0.2404318]
[1739422745348,0.0001544,96973.0,96964.0,0.2384318]
[1739422745549,0.0001544,96973.0,96964.0,0.2414318]
[1739422746137,0.0001544,96973.0,96964.0,0.2404318]
[1739422746545,0.2062163,96972.0,96964.0,0.0342]
[1739422748646,0.2062163,96972.0,96964.0,0.0352]
[1739422749045,0.0001544,96973.0,96972.0,0.2062149]
[1739422750352,0.0001544,96973.0,96972.0,0.2082149]
[1739422750547,0.0011544,96973.0,96972.0,0.2082149]
[1739422750754,0.001,96973.0,96972.0,0.2082149]
[1739422751744,0.3608,96978.0,96972.0,0.2082149]
[1739422751949,0.3608,96978.0,96972.0,0.002]
[1739422752159,0.3608,96978.0,96975.0,0.2062081]
[1739422752351,0.3608,96978.0,96972.0,0.002]
[1739422752856,0.3618,96978.0,96965.0,0.3608]
[1739422753554,0.3618,96978.0,96976.0,0.2062064]
[1739422754450,0.3618,96978.0,96965.0,0.3608]
[1739422754652,0.3618,96978.0,96974.0,0.2062094]
[1739422755959,0.3618,96978.0,96972.0,0.2062149]
[1739422756458,0.3618,96978.0,96968.0,0.12245062]
[1739422756757,0.3618,96978.0,96969.0,0.2062214]
[1739422757351,0.3618,96978.0,96971.0,0.2062171]
[1739422758363,0.3618,96978.0,96977.0,0.2062044]
[1739422759163,0.00154721,96984.0,96981.0,0.2061955]
[1739422761354,0.00254721,96984.0,96981.0,0.2061955]
[1739422761558,0.00254721,96984.0,96974.0,0.7286974]
[1739422761762,0.00254721,96984.0,96974.0,0.5215686]
[1739422761965,0.00254721,96984.0,96980.0,0.206198]
[1739422762652,0.00154721,96984.0,96980.0,0.206198]
[1739422762960,0.00254721,96984.0,96974.0,0.5224886]
[1739422763163,0.00254721,96984.0,96981.0,0.2061955]
[1739422763861,0.00254721,96984.0,96974.0,0.5224886]
[1739422764065,0.00254721,96984.0,96982.0,0.2061936]
[1739422764463,0.00154721,96984.0,96982.0,0.2061936]
[1739422764663,0.00254721,96984.0,96982.0,0.2061936]
[1739422765264,0.00154721,96984.0,96982.0,0.2061936]
[1739422765456,0.00254721,96984.0,96982.0,0.2061936]
[1739422767756,0.00254721,96984.0,96983.0,0.2061917]
[1739422771366,0.11410247,96997.0,96996.0,0.2061641]
[1739422772262,0.11410247,96997.0,96996.0,0.21707421]
[1739422772669,0.15161007,97007.0,96996.0,0.01091011]
[1739422772871,0.15161007,97007.0,96991.0,0.5215686]
[1739422773770,0.15161007,97007.0,96996.0,0.002]
[1739422774173,0.15161007,97007.0,97006.0,0.2061428]
[1739422774368,0.17505728,97016.0,97006.0,0.2061428]
[1739422774556,0.17505728,97016.0,96999.0,0.3608]
[1739422774557,0.07149631,97016.0,96999.0,0.3608]
[1739422774769,0.18238887,97026.0,97008.0,0.3608]
[1739422775058,0.38797046,97026.0,97016.0,0.12244469]
[1739422775666,0.18186886,97026.0,97017.0,0.2061187]
[1739422775968,0.18186886,97026.0,97016.0,0.12244469]
[1739422776164,0.18186886,97026.0,97020.0,0.2061123]
[1739422777171,0.2378944,97029.0,97020.0,0.2061123]
[1739422777564,0.0318,97029.0,97020.0,0.2061123]
[1739422777966,0.0318,97029.0,97016.0,0.12244469]
[1739422778169,0.20764505,97027.0,97021.0,0.2061103]
[1739422778366,0.3608,97022.0,96999.0,0.2061563]
[1739422778564,0.2061566,97000.0,96980.0,0.12244469]
[1739422778764,0.0954,96999.0,96990.0,0.12244469]
[1739422779463,0.2061598,96998.0,96990.0,0.12244469]
[1739422779871,0.2061598,96998.0,96996.0,0.00154628]
[1739422780060,0.0954,96999.0,96970.0,0.12244469]
[1739422780261,0.2062033,96978.0,96970.0,0.12244469]
[1739422780466,0.2062033,96978.0,96972.0,0.2062139]
[1739422780970,0.3608,96975.0,96972.0,0.2062139]
[1739422781675,0.3608,96975.0,96972.0,0.2132139]
[1739422782070,0.2062033,96978.0,96972.0,0.2132139]
[1739422782479,0.2062033,96978.0,96972.0,0.007]
[1739422782777,0.36095442,96983.0,96972.0,0.007]
[1739422782977,0.36095442,96983.0,96972.0,0.022]
[1739422783375,0.00015442,96983.0,96978.0,0.206201]
[1739422783877,0.00015442,96983.0,96973.0,0.2062119]
[1739422784074,0.00015442,96983.0,96974.0,0.2062103]
[1739422784276,0.00015442,96983.0,96972.0,0.022]
[1739422784470,0.00015442,96983.0,96972.0,0.007]
[1739422784670,0.00015442,96983.0,96978.0,0.015]
[1739422785179,0.20634642,96983.0,96978.0,0.015]
[1739422786179,0.20634642,96983.0,96972.0,0.022]
[1739422786679,0.20634642,96983.0,96978.0,0.007]
[1739422786881,0.3608,96979.0,96978.0,0.022]
[1739422787073,0.3608,96979.0,96978.0,0.09328]
[1739422787278,0.3608,96979.0,96978.0,0.09324]
[1739422787679,0.3608,96979.0,96978.0,0.07124]
[1739422789279,0.3608,96979.0,96978.0,0.08624]
[1739422789681,0.3608,96979.0,96978.0,0.015]
[1739422789877,0.3608,96979.0,96978.0,0.022]
[1739422790077,0.4227,96979.0,96978.0,0.022]
[1739422799076,0.6427,96979.0,96978.0,0.022]
[1739422799277,0.4227,96979.0,96978.0,0.022]
[1739422800483,0.4227,96979.0,96970.0,0.01314499]
[1739422800484,0.2062172,96971.0,96970.0,0.01314499]
[1739422800685,0.3608,96971.0,96964.0,0.00015461]
[1739422800882,0.20623,96965.0,96964.0,0.00015461]
[1739422801478,0.20623,96965.0,96964.0,0.01327356]
[1739422801682,0.20623,96965.0,96964.0,0.00015461]
[1739422802186,0.3618,96971.0,96969.0,0.2062214]
[1739422802383,0.3618,96971.0,96970.0,0.0304]
[1739422802887,0.3608,96971.0,96970.0,0.0304]
[1739422803691,0.3628,96971.0,96970.0,0.0524]
[1739422804987,0.5690172,96971.0,96970.0,0.0524]
[1739422805492,0.5680172,96971.0,96970.0,0.0514]
[1739422805998,0.5680172,96971.0,96970.0,0.0454]
[1739422806290,0.5680172,96971.0,96970.0,0.0484]
[1739422806486,0.5670172,96971.0,96970.0,0.0434]
[1739422806692,0.5680172,96971.0,96970.0,0.0434]
[1739422807086,0.5680172,96971.0,96970.0,0.0404]
[1739422807392,0.5680172,96971.0,96970.0,0.013]
[1739422808297,0.5680172,96971.0,96970.0,0.012]
[1739422808490,0.5680172,96971.0,96950.0,0.0621]
[1739422808491,0.2062756,96944.0,96940.0,0.12244469]
[1739422808695,0.2062756,96944.0,96930.0,0.36967759]
[1739422808696,0.2062796,96942.0,96937.0,0.0618]
[1739422808996,0.3608,96944.0,96937.0,0.0618]
[1739422809190,0.2062847,96940.0,96937.0,0.0618]
[1739422809392,0.72212001,96944.0,96931.0,0.0312]
[1739422809592,0.72212001,96944.0,96931.0,0.04477556]
[1739422809593,0.5671002,96932.0,96931.0,0.04477556]
[1739422810389,0.5671002,96932.0,96931.0,0.01357556]
[1739422810589,0.5671002,96932.0,96930.0,0.37087759]
[1739422810893,0.5671002,96932.0,96930.0,0.36967759]
[1739422811197,0.5671002,96932.0,96928.0,0.00015469]
[1739422811998,0.5671002,96932.0,96931.0,0.006]
[1739422812290,0.3608,96932.0,96931.0,0.01955418]
[1739422812492,0.3608,96932.0,96931.0,0.006]
[1739422812797,0.3608,96932.0,96928.0,0.00615469]
[1739422812798,0.3618,96932.0,96928.0,0.00615469]
[1739422813098,0.3628,96932.0,96931.0,0.005]
[1739422813298,0.5691011,96932.0,96931.0,0.005]
[1739422813493,0.5691011,96932.0,96931.0,0.01822665]
[1739422813697,0.5691011,96932.0,96931.0,0.011]
[1739422814102,0.5691011,96932.0,96931.0,0.006]
[1739422814597,0.5681011,96932.0,96931.0,0.006]
[1739422814798,0.5681011,96932.0,96931.0,0.011]
[1739422814799,0.5691011,96932.0,96931.0,0.011]
[1739422815690,0.5691011,96932.0,96931.0,0.02456808]
[1739422815890,0.5691011,96932.0,96931.0,0.03056808]
[1739422818794,0.002,96932.0,96931.0,0.03056808]
[1739422827603,0.002,96932.0,96931.0,0.23687028]
[1739422830702,0.00015469,96947.0,96946.0,0.2062703]
[1739422832317,0.00115469,96947.0,96946.0,0.2142703]
[1739422833720,0.3608,96960.0,96946.0,0.3718]
[1739422834017,0.3608,96960.0,96948.0,0.2062655]
[1739422834216,0.3608,96960.0,96949.0,0.2062635]
[1739422834417,0.3608,96960.0,96946.0,0.37296]
[1739422834617,0.3608,96960.0,96950.0,0.2062613]
[1739422835120,0.3618,96960.0,96946.0,0.36192]
[1739422835308,0.3628,96960.0,96947.0,0.06984]
[1739422836023,0.3608,96980.0,96954.0,0.3608]
[1739422836212,0.3608,96982.0,96962.0,0.48324469]
[1739422836519,0.3608,96982.0,96970.0,0.12244469]
[1739422837016,0.2062039,96978.0,96970.0,0.12244469]
[1739422837320,0.3608,96982.0,96973.0,0.2062108]
[1739422837521,0.3608,96982.0,96970.0,0.13586383]
[1739422837908,0.3618,96982.0,96970.0,0.13586383]
[1739422838112,0.2061971,96981.0,96970.0,0.13586383]
[1739422838625,0.2061986,96980.0,96970.0,0.13586383]
[1739422841515,0.3608,96982.0,96970.0,0.13586383]
[1739422842620,0.3618,96982.0,96970.0,0.13586383]
[1739422842811,0.3608,96971.0,96966.0,0.00015469]
[1739422843018,0.2062256,96967.0,96966.0,0.00015469]
[1739422843717,0.2062256,96967.0,96966.0,0.01318433]
[1739422844423,0.2062256,96967.0,96966.0,0.01618433]
[1739422845225,0.2062256,96967.0,96966.0,0.01015469]
[1739422845818,0.2062256,96967.0,96966.0,0.00315469]
[1739422846023,0.4272256,96967.0,96966.0,0.01315469]
[1739422846224,0.2072256,96967.0,96966.0,0.01315469]
[1739422846816,0.4272256,96967.0,96966.0,0.01315469]
[1739422847116,0.5418,96967.0,96944.0,0.3608]
[1739422847320,0.3608,96952.0,96940.0,0.12244469]
[1739422847625,0.0333,96951.0,96940.0,0.12244469]
[1739422847817,0.3608,96941.0,96940.0,0.12244469]
[1739422848015,0.3608,96941.0,96936.0,0.00116]
[1739422848211,0.3608,96941.0,96936.0,0.01415391]
[1739422848529,0.2062777,96943.0,96935.0,0.2062934]
[1739422848925,0.2062777,96943.0,96940.0,0.002]
[1739422849126,0.3608,96941.0,96940.0,0.002]
[1739422849330,0.3618,96941.0,96940.0,0.002]
[1739422850037,0.5680809,96941.0,96940.0,0.002]
[1739422850236,0.5680809,96941.0,96940.0,0.016]
[1739422850431,0.5680809,96941.0,96940.0,0.014]
[1739422850934,0.5680809,96941.0,96940.0,0.018]
[1739422859832,0.58085459,96941.0,96940.0,0.018]
[1739422860032,0.5518,96941.0,96931.0,0.00015469]
[1739422860233,0.3608,96932.0,96910.0,0.12244469]
[1739422860439,0.3608,96924.0,96911.0,0.07008]
[1739422861141,0.3608,96924.0,96918.0,0.0645]
[1739422861344,0.3608,96924.0,96918.0,0.07714477]
[1739422861735,0.3618,96924.0,96918.0,0.08414477]
[1739422862335,0.3638,96924.0,96918.0,0.08414477]
[1739422863737,0.2063251,96921.0,96918.0,0.08414477]
[1739422864551,0.2063276,96920.0,96918.0,0.05264477]
[1739422865246,0.2063276,96920.0,96918.0,0.04564477]
[1739422865946,0.2083276,96920.0,96918.0,0.04564477]
[1739422866146,0.2083276,96920.0,96918.0,0.01264477]
[1739422866339,0.002,96920.0,96911.0,0.00015469]
[1739422866538,0.2063427,96912.0,96911.0,0.00015469]
[1739422866849,0.2063427,96912.0,96911.0,0.01317106]
[1739422867149,0.2063427,96912.0,96911.0,0.00015469]
[1739422867341,0.2063427,96912.0,96911.0,0.00315469]
[1739422867537,0.4163427,96912.0,96911.0,0.00315469]
[1739422867840,0.2063427,96912.0,96911.0,0.00015469]
[1739422868143,0.4073427,96912.0,96911.0,0.01610212]
[1739422868355,0.2073427,96912.0,96911.0,0.00315469]
[1739422868648,0.2093427,96912.0,96911.0,0.00315469]
[1739422869842,0.2093427,96912.0,96911.0,0.016]
[1739422871947,0.4093427,96912.0,96911.0,0.016]
[1739422872144,0.2093427,96912.0,96911.0,0.016]
[1739422872345,0.3893427,96912.0,96911.0,0.00315469]
[1739422872548,0.206364,96902.0,96900.0,0.1]
[1739422872746,0.3608,96901.0,96900.0,0.1]
[1739422873147,0.5608,96901.0,96900.0,0.1]
[1739422873450,0.3608,96901.0,96900.0,0.1]
[1739422874037,0.3618,96901.0,96900.0,0.1]
[1739422875552,0.5918,96901.0,96900.0,0.1]
[1739422875846,0.3638,96901.0,96900.0,0.1]
[1739422877446,0.6038,96901.0,96900.0,0.1]
[1739422877647,0.3638,96901.0,96900.0,0.1]
[1739422878449,0.3638,96901.0,96886.0,0.0302]
[1739422878450,0.4138,96901.0,96855.0,0.43108]
[1739422878752,0.2064279,96872.0,96871.0,0.0647]
[1739422878944,0.2064279,96872.0,96871.0,0.0964]
[1739422880249,0.2064279,96872.0,96870.0,0.01307049]
[1739422880445,0.001,96872.0,96862.0,0.00015477]
[1739422880644,0.2064385,96867.0,96862.0,0.00015477]
[1739422881245,0.2064385,96867.0,96866.0,0.01270462]
[1739422881453,0.206446,96864.0,96862.0,0.00015477]
[1739422881651,0.36432001,96872.0,96862.0,0.00015477]
[1739422881849,0.2064357,96869.0,96862.0,0.00015477]
[1739422882154,0.003,96867.0,96862.0,0.01303437]
[1739422882748,0.206447,96863.0,96862.0,0.01303437]
[1739422882946,0.567247,96863.0,96862.0,0.01303437]
[1739422883549,0.737247,96863.0,96862.0,0.01303437]
[1739422883752,0.567247,96863.0,96862.0,0.01303437]
[1739422884754,0.568247,96863.0,96862.0,0.01303437]
[1739422885346,0.788247,96863.0,96862.0,0.01303437]
[1739422885553,0.570247,96863.0,96862.0,0.01303437]
[1739422887355,0.003,96863.0,96862.0,0.21948357]
[1739422887556,0.2064081,96882.0,96871.0,0.2064293]
[1739422887857,0.15225653,96891.0,96872.0,0.0959]
[1739422887858,0.2063925,96889.0,96872.0,0.0959]
[1739422888053,0.2063994,96886.0,96874.0,0.2064227]
[1739422888245,0.2063994,96886.0,96875.0,0.20642]
[1739422888450,0.2063994,96886.0,96872.0,0.0959]
[1739422888649,0.2064043,96884.0,96872.0,0.0959]
[1739422888850,0.20656427,96881.0,96872.0,0.0959]
[1739422889454,0.00015477,96881.0,96877.0,0.2064167]
[1739422889849,0.00015477,96881.0,96872.0,0.0959]
[1739422890252,0.00015477,96881.0,96874.0,0.2074223]
[1739422890760,0.00015477,96881.0,96874.0,0.2064223]
[1739422890972,0.00015477,96881.0,96877.0,0.001]
[1739422891259,0.00015477,96881.0,96877.0,0.3618]
[1739422891460,0.00015477,96881.0,96880.0,0.2064108]
[1739422893659,0.00015477,96881.0,96880.0,0.2074108]
[1739422893964,0.00115477,96881.0,96880.0,0.2074108]
[1739422896058,0.20756347,96881.0,96880.0,0.001]
[1739422896362,0.56836347,96881.0,96880.0,0.001]
[1739422896954,0.78836347,96881.0,96880.0,0.001]
[1739422897149,0.56836347,96881.0,96880.0,0.001]
[1739422898257,0.75836347,96881.0,96880.0,0.001]
[1739422898455,0.75836347,96881.0,96859.0,0.0307]
[1739422898456,0.206447,96863.0,96858.0,0.0333]
[1739422898663,0.567247,96863.0,96850.0,0.48324469]
[1739422899955,0.3638,96863.0,96850.0,0.3608]
[1739422900158,0.2064726,96851.0,96850.0,0.3608]
[1739422900867,0.2064726,96851.0,96850.0,0.37325606]
[1739422901367,0.2064918,96842.0,96841.0,0.00015485]
[1739422901560,0.5672918,96842.0,96841.0,0.00015485]
[1739422902962,0.5682918,96842.0,96841.0,0.00015485]
[1739422903562,0.5702918,96842.0,96841.0,0.00015485]
[1739422909872,0.7902918,96842.0,96841.0,0.00015485]
[1739422910063,0.5702918,96842.0,96841.0,0.00015485]
[1739422910463,0.7802918,96842.0,96841.0,0.00015485]
[1739422910772,0.5702918,96842.0,96841.0,0.00015485]
[1739422912267,0.2064982,96839.0,96838.0,0.0156825]
[1739422912471,0.2065132,96832.0,96829.0,0.12244469]
[1739422912679,0.3608,96834.0,96822.0,0.12244469]
[1739422912877,0.2065308,96824.0,96822.0,0.12244469]
[1739422913065,0.2065308,96824.0,96822.0,0.01579828]
[1739422913266,0.2065387,96820.0,96819.0,0.45512]
[1739422913564,0.2065387,96820.0,96819.0,0.454]
[1739422914777,0.2075387,96820.0,96819.0,0.454]
[1739422915077,0.2075387,96820.0,96819.0,0.46960679]
[1739422916075,0.2095387,96820.0,96819.0,0.46960679]
[1739422916768,0.2095387,96820.0,96819.0,0.37640679]
[1739422917973,0.003,96820.0,96813.0,0.00010332]
[1739422918279,0.5673515,96814.0,96813.0,0.00010332]
[1739422918679,0.6773515,96814.0,96813.0,0.00010332]
[1739422918973,0.2065771,96802.0,96801.0,0.01613063]
[1739422919175,0.5673771,96802.0,96800.0,0.22244469]
[1739422919375,0.5673771,96802.0,96800.0,0.1]
[1739422919574,0.3608,96802.0,96800.0,0.1]
[1739422919966,0.3608,96802.0,96800.0,0.3065811]
[1739422920370,0.3618,96802.0,96800.0,0.3065811]
[1739422920768,0.3618,96802.0,96800.0,0.32258716]
[1739422921571,0.3638,96802.0,96800.0,0.32258716]
[1739422921977,0.3638,96802.0,96800.0,0.11600606]
[1739422922984,0.3638,96802.0,96800.0,0.32258716]
[1739422926477,0.003,96802.0,96801.0,0.3608]
[1739422926673,0.003,96802.0,96801.0,0.62148]
[1739422927471,0.002,96802.0,96801.0,0.62148]
[1739422927670,0.003,96802.0,96801.0,0.62148]
[1739422928578,0.00015493,96811.0,96801.0,0.6731245]
[1739422928773,0.00015493,96811.0,96810.0,0.56736]
[1739422929782,0.00115493,96811.0,96810.0,0.56736]
[1739422930189,0.00015493,96811.0,96810.0,0.56736]
[1739422930379,0.00115493,96811.0,96810.0,0.56736]
[1739422930778,0.00315493,96811.0,96810.0,0.56736]
[1739422931474,0.00115493,96811.0,96810.0,0.56736]
[1739422931679,0.00315493,96811.0,96810.0,0.56736]
[1739422937984,0.3608,96833.0,96817.0,0.0516359]
[1739422938179,0.3608,96833.0,96818.0,0.12244469]
[1739422938384,0.3608,96833.0,96829.0,0.2065184]
[1739422939677,0.3618,96833.0,96829.0,0.2065184]
[1739422940290,0.3618,96833.0,96821.0,0.00015493]
[1739422940490,0.3618,96833.0,96824.0,0.2065288]
[1739422940690,0.3618,96833.0,96825.0,0.2065277]
[1739422941590,0.3618,96833.0,96829.0,0.002]
[1739422941983,0.3618,96833.0,96826.0,0.2065257]
[1739422942776,0.3618,96833.0,96830.0,0.2065171]
[1739422943995,0.001,96833.0,96830.0,0.2065171]
[1739422945392,0.00387851,96840.0,96832.0,0.3608]
[1739422945598,0.00387851,96840.0,96833.0,0.2065108]
[1739422946095,0.00387851,96840.0,96834.0,0.2065085]
[1739422946489,0.00387851,96840.0,96836.0,0.2065043]
[1739422946690,0.00387851,96840.0,96837.0,0.2065011]
[1739422947286,0.00387851,96840.0,96839.0,0.2064981]
[1739422950291,0.00387851,96840.0,96839.0,0.22258324]
[1739422950499,0.00015493,96841.0,96839.0,0.22258324]
[1739422951197,0.00015493,96841.0,96840.0,0.206496]
[1739422952686,0.00115493,96841.0,96840.0,0.206496]
[1739422953493,0.3608,96863.0,96852.0,0.2064694]
[1739422953793,0.3608,96863.0,96852.0,0.12244469]
[1739422953993,0.3608,96863.0,96858.0,0.2064571]
[1739422954397,0.3608,96863.0,96852.0,0.12244469]
[1739422954586,0.3608,96863.0,96857.0,0.2064593]
[1739422954792,0.3608,96863.0,96852.0,0.12244469]
[1739422954991,0.007,96862.0,96852.0,0.12244469]
[1739422955395,0.007,96862.0,96852.0,0.32891459]
[1739422955699,0.014,96862.0,96853.0,0.2064672]
[1739422956198,0.021,96862.0,96853.0,0.2064672]
[1739422956900,0.007,96862.0,96853.0,0.2064672]
[1739422957196,0.021,96862.0,96853.0,0.2064672]
[1739422957395,0.3608,96854.0,96852.0,0.12244469]
[1739422957603,0.3608,96854.0,96851.0,0.00015493]
[1739422958100,0.2064683,96853.0,96851.0,0.00015493]
[1739422959801,0.37032001,96854.0,96851.0,0.00015493]
[1739422959996,0.004,96853.0,96851.0,0.00015493]
[1739422960502,0.012,96853.0,96851.0,0.00015493]
[1739422960903,0.2064704,96852.0,96851.0,0.00015493]
[1739422962302,0.4104704,96852.0,96851.0,0.00015493]
[1739422962499,0.2184704,96852.0,96851.0,0.00015493]
[1739422962896,0.3984704,96852.0,96851.0,0.00015493]
[1739422963099,0.2184704,96852.0,96851.0,0.00015493]
[1739422966414,0.44842691,96852.0,96851.0,0.00015493]
[1739422966713,0.45842691,96852.0,96851.0,0.00015493]
[1739422967015,0.21842691,96852.0,96851.0,0.00015493]
[1739422967713,0.42842691,96852.0,96851.0,0.00015493]
[1739422967921,0.21842691,96852.0,96851.0,0.00015493]
[1739422969311,0.38842691,96852.0,96851.0,0.00015493]
[1739422969510,0.21842691,96852.0,96851.0,0.00015493]
[1739422971320,0.21842691,96852.0,96851.0,0.02023219]
[1739422973720,0.2065131,96832.0,96830.0,0.12244469]
[1739422974018,0.2065131,96832.0,96831.0,0.01995354]
[1739422974321,0.2065131,96832.0,96809.0,0.3608]
[1739422974322,0.23,96832.0,96802.0,0.00112]
[1739422974519,0.3608,96806.0,96803.0,0.0952]
[1739422974817,0.2065707,96805.0,96803.0,0.0952]
[1739422975618,0.2065707,96805.0,96803.0,0.0319]
[1739422975818,0.2065707,96805.0,96803.0,0.0349]
[1739422977424,0.2075707,96805.0,96803.0,0.0339]
[1739422977627,0.2075707,96805.0,96795.0,0.00015493]
[1739422977628,0.1952,96804.0,96795.0,0.00015493]
[1739422977919,0.1952,96804.0,96763.0,0.0306]
[1739422977920,0.2066569,96765.0,96763.0,0.0306]
[1739422978322,0.21,96765.0,96740.0,0.49466759]
[1739422978620,0.21,96765.0,96740.0,0.29875659]
[1739422978621,0.2067073,96741.0,96740.0,0.29875659]
[1739422978823,0.2067073,96741.0,96740.0,0.29755659]
[1739422979622,0.3608,96747.0,96740.0,0.29755659]
[1739422980626,0.3608,96747.0,96737.0,0.34926939]
[1739422980823,0.3608,96738.0,96737.0,0.34926939]
[1739422981025,0.003,96741.0,96740.0,0.2067095]
[1739422981026,0.002,96741.0,96740.0,0.2067095]
[1739422981218,0.002,96741.0,96737.0,0.0201092]
[1739422981219,0.3608,96760.0,96737.0,0.0201092]
[1739422981527,0.3608,96760.0,96759.0,0.2066689]
[1739422981913,0.3608,96760.0,96750.0,0.12244469]
[1739422982422,0.1952,96770.0,96751.0,0.206686]
[1739422982621,0.3608,96771.0,96756.0,0.12244469]